fUST/lending_fUST_20250227
["ID","MTS","AMOUNT","RATE_DAILY","PERIOD"]
[354602103,1740595847131,-500.0,0.00052328,30]
[354602106,1740595847141,-151.0,0.00052328,120]
[354602108,1740595847151,-626.80601024,0.00052328,120]
[354602110,1740595847161,-275.1732054,0.00052328,120]
[354602112,1740595847171,-273.1783442,0.00052328,120]
[354602114,1740595847182,-500.0,0.00052328,120]
[354602116,1740595847191,-500.0,0.00052328,120]
[354602118,1740595847201,-500.0,0.00052328,120]
[354602120,1740595847210,-828.49,0.00052328,120]
[354602122,1740595847220,-500.0,0.00052328,120]
[354602124,1740595847230,-180.163794,0.00052328,120]
[354602126,1740595847240,-500.0,0.00052328,120]
[354602128,1740595847250,-180.163794,0.00052328,120]
[354602130,1740595847260,-500.0,0.00052328,120]
[354602132,1740595847270,-840.04,0.00052328,120]
[354602134,1740595847280,-300.0,0.00052328,120]
[354602136,1740595847290,-500.0,0.00052328,120]
[354602139,1740595847300,-500.0,0.00052328,120]
[354602141,1740595847311,-500.0,0.00052328,120]
[354602143,1740595847321,-500.0,0.00052328,120]
[354602145,1740595847331,-799.37,0.00052328,120]
[354602147,1740595847340,-500.0,0.00052328,120]
[354602149,1740595847350,-500.0,0.00052328,120]
[354602151,1740595847359,-500.0,0.00052328,120]
[354602153,1740595847369,-500.0,0.00052328,120]
[354602155,1740595847379,-500.0,0.00052328,120]
[354602157,1740595847389,-348.010355,0.00052328,120]
[354602159,1740595847398,-348.010355,0.00052328,120]
[354602161,1740595847408,-348.010355,0.00052328,120]
[354602163,1740595847418,-348.010355,0.00052328,120]
[354602165,1740595847427,-525.22,0.00052328,120]
[354602167,1740595847438,-526.23,0.00052328,120]
[354602169,1740595847447,-500.0,0.00052328,120]
[354602171,1740595847457,-692.43,0.00052328,120]
[354602173,1740595847468,-566.11,0.00052328,14]
[354602175,1740595847478,-1177.15,0.00052328,120]
[354602177,1740595847488,-500.0,0.00052328,120]
[354602179,1740595847498,-175.92847754,0.00052328,120]
[354602181,1740595847508,-500.0,0.00052328,120]
[354602183,1740595847518,-1194.96,0.00052328,120]
[354602185,1740595847528,-500.0,0.00052328,120]
[354602187,1740595847538,-1734.78,0.00052328,120]
[354602189,1740595847548,-500.0,0.00052328,120]
[354602191,1740595847558,-241.25984584,0.00052328,120]
[354602193,1740595847568,-1448.26,0.00052328,120]
[354602195,1740595847578,-500.0,0.00052328,120]
[354602197,1740595847588,-500.0,0.00052328,120]
[354602200,1740595847598,-500.0,0.00052328,120]
[354602202,1740595847608,-500.0,0.00052328,120]
[354602204,1740595847617,-500.0,0.00052328,120]
[354602206,1740595847627,-772.59,0.00052328,120]
[354602208,1740595847636,-576.98,0.00052328,120]
[354602210,1740595847646,-500.0,0.00052328,120]
[354602212,1740595847655,-599.45,0.00052328,120]
[354602214,1740595847665,-500.0,0.00052328,120]
[354602216,1740595847675,-500.0,0.00052328,120]
[354602218,1740595847684,-500.0,0.00052328,120]
[354602220,1740595847693,-500.0,0.00052328,120]
[354602222,1740595847703,-582.65,0.00052328,120]
[354602224,1740595847712,-500.0,0.00052328,120]
[354602226,1740595847722,-518.67,0.00052328,120]
[354602228,1740595847732,-500.0,0.00052328,120]
[354602230,1740595847742,-524.39,0.00052328,120]
[354602232,1740595847751,-540.34,0.00052328,120]
[354602234,1740595847761,-707.66,0.00052328,120]
[354602235,1740595847771,-500.0,0.00052328,120]
[354602253,1740595847934,-879.42,0.00052328,120]
[354602255,1740595847946,-894.65,0.00052328,120]
[354602257,1740595847956,-500.0,0.00052328,120]
[354602259,1740595847966,-523.35,0.00052328,120]
[354602261,1740595847975,-500.0,0.00052328,120]
[354602263,1740595847986,-500.0,0.00052328,120]
[354602265,1740595847996,-500.0,0.00052328,120]
[354602267,1740595848005,-500.0,0.00052328,120]
[354602269,1740595848015,-500.0,0.00052328,120]
[354602271,1740595848025,-1060.7,0.00052328,120]
[354602272,1740595848035,-500.0,0.00052328,120]
[354602274,1740595848044,-500.0,0.00052328,120]
[354602276,1740595848053,-630.3,0.00052328,120]
[354602278,1740595848065,-500.0,0.00052328,120]
[354602280,1740595848074,-500.0,0.00052328,120]
[354602282,1740595848084,-500.0,0.00052328,120]
[354602284,1740595848094,-500.0,0.00052328,120]
[354602286,1740595848103,-543.64,0.00052328,120]
[354602288,1740595848113,-757.41,0.00052328,120]
[354602290,1740595848123,-618.62,0.00052328,120]
[354602292,1740595848132,-250.0,0.00052328,120]
[354602294,1740595848142,-500.0,0.00052328,120]
[354602295,1740595848151,-500.0,0.00052328,120]
[354602297,1740595848160,-162.28417821,0.00052328,120]
[354602299,1740595848170,-1105.48,0.00052328,120]
[354602301,1740595848180,-1198.93,0.00052328,120]
[354602303,1740595848189,-849.13,0.00052328,120]
[354602305,1740595848199,-500.0,0.00052328,120]
[354602307,1740595848209,-500.0,0.00052328,120]
[354602309,1740595848219,-500.0,0.00052328,120]
[354602311,1740595848229,-500.0,0.00052328,120]
[354602313,1740595848239,-500.0,0.00052328,120]
[354602315,1740595848249,-578.35,0.00052328,120]
[354602317,1740595848259,-827.78,0.00052328,120]
[354602319,1740595848269,-500.0,0.00052328,120]
[354602321,1740595848278,-1260.45,0.00052328,120]
[354602323,1740595848288,-500.0,0.00052328,120]
[354602325,1740595848298,-500.0,0.00052328,30]
[354602327,1740595848307,-624.52,0.00052328,120]
[354602329,1740595848318,-1553.65,0.00052328,120]
[354602331,1740595848327,-515.01,0.00052328,120]
[354602333,1740595848337,-558.26,0.00052328,120]
[354602334,1740595848347,-500.0,0.00052328,120]
[354602336,1740595848356,-527.02,0.00052328,120]
[354602338,1740595848366,-700.01,0.00052328,120]
[354602340,1740595848376,-500.0,0.00052328,120]
[354602342,1740595848385,-751.69,0.00052328,120]
[354602344,1740595848394,-500.0,0.00052328,120]
[354602346,1740595848404,-500.0,0.00052328,120]
[354602348,1740595848413,-500.0,0.00052328,15]
[354602350,1740595848423,-500.0,0.00052328,120]
[354602352,1740595848433,-1613.85,0.00052328,120]
[354602354,1740595848443,-1300.61,0.00052328,120]
[354602356,1740595848452,-667.88,0.00052328,120]
[354602358,1740595848461,-2143.47,0.00052328,120]
[354602360,1740595848470,-500.0,0.00052328,120]
[354602361,1740595848480,-542.87,0.00052328,120]
[354602364,1740595848490,-872.97,0.00052328,120]
[354602365,1740595848499,-500.0,0.00052328,120]
[354602367,1740595848508,-500.0,0.00052328,120]
[354602369,1740595848518,-1346.61,0.00052328,120]
[354602371,1740595848527,-500.0,0.00052328,120]
[354602373,1740595848537,-500.0,0.00052328,120]
[354602375,1740595848546,-2396.98,0.00052328,120]
[354602377,1740595848556,-640.62,0.00052328,120]
[354602379,1740595848567,-500.0,0.00052328,120]
[354602381,1740595848576,-500.0,0.00052328,120]
[354602383,1740595848586,-1154.76,0.00052328,120]
[354602385,1740595848595,-500.0,0.00052328,120]
[354602387,1740595848604,-617.22256872,0.00052328,120]
[354602389,1740595848613,-500.0,0.00052328,120]
[354602391,1740595848623,-500.0,0.00052328,120]
[354602393,1740595848632,-500.0,0.00052328,120]
[354602395,1740595848641,-500.0,0.00052328,120]
[354602397,1740595848650,-357.38975644,0.00052328,120]
[354602399,1740595848659,-500.0,0.00052328,120]
[354602401,1740595848668,-1463.13,0.00052328,120]
[354602403,1740595848678,-500.0,0.00052328,120]
[354602405,1740595848687,-2977.1,0.00052328,120]
[354602407,1740595848696,-500.0,0.00052328,120]
[354602409,1740595848706,-500.0,0.00052328,120]
[354602410,1740595848715,-500.0,0.00052328,120]
[354602412,1740595848724,-500.0,0.00052328,120]
[354602414,1740595848733,-500.0,0.00052328,120]
[354602416,1740595848743,-3444.22,0.00052328,120]
[354602418,1740595848752,-1010.42,0.00052328,120]
[354602420,1740595848761,-522.19,0.00052328,30]
[354602422,1740595848771,-989.6,0.00052328,120]
[354602424,1740595848780,-1121.27,0.00052328,120]
[354602426,1740595848790,-505.56746213,0.00052328,120]
[354602428,1740595848799,-500.0,0.00052328,120]
[354602430,1740595848808,-1101.44,0.00052328,120]
[354602432,1740595848821,-500.0,0.00052328,45]
[354602434,1740595848831,-500.0,0.00052328,120]
[354602436,1740595848842,-1764.14,0.00052328,120]
[354602438,1740595848852,-500.0,0.00052328,120]
[354602440,1740595848863,-588.25,0.00052328,120]
[354602442,1740595848873,-2377.1,0.00052328,120]
[354602443,1740595848883,-852.55,0.00052328,120]
[354602445,1740595848893,-500.0,0.00052328,120]
[354602447,1740595848903,-1100.79,0.00052328,120]
[354602449,1740595848914,-500.0,0.00052328,120]
[354602451,1740595848925,-500.0,0.00052328,120]
[354602453,1740595848936,-1552.98,0.00052328,120]
[354602455,1740595848946,-500.0,0.00052328,120]
[354602457,1740595848960,-500.0,0.00052328,120]
[354602459,1740595848970,-646.81561276,0.00052328,120]
[354602461,1740595848981,-543.36,0.00052328,120]
[354602463,1740595848991,-797.98,0.00052328,120]
[354602465,1740595849002,-500.0,0.00052328,120]
[354602467,1740595849011,-500.0,0.00052328,120]
[354602469,1740595849022,-951.27,0.00052328,120]
[354602471,1740595849033,-500.0,0.00052328,120]
[354602473,1740595849044,-888.97,0.00052328,120]
[354602475,1740595849055,-612.57,0.00052328,120]
[354602477,1740595849072,-2699.87,0.00052328,120]
[354602479,1740595849084,-500.0,0.00052328,120]
[354602481,1740595849095,-500.0,0.00052328,120]
[354602483,1740595849107,-500.0,0.00052328,120]
[354602485,1740595849117,-500.0,0.00052328,120]
[354602487,1740595849128,-1580.11,0.00052328,120]
[354602489,1740595849139,-500.0,0.00052328,120]
[354602491,1740595849149,-600.68764208,0.00052328,120]
[354602493,1740595849160,-500.0,0.00052328,120]
[354602495,1740595849172,-500.0,0.00052328,120]
[354602497,1740595849184,-1704.51,0.00052328,120]
[354602498,1740595849194,-500.0,0.00052328,120]
[354602500,1740595849205,-500.0,0.00052328,120]
[354602502,1740595849215,-500.0,0.00052328,120]
[354602504,1740595849225,-788.27,0.00052328,120]
[354602506,1740595849237,-1099.83,0.00052328,120]
[354602508,1740595849247,-504.46098639,0.00052328,120]
[354602510,1740595849258,-500.0,0.00052328,120]
[354602512,1740595849268,-500.0,0.00052328,120]
[354602514,1740595849279,-1902.4,0.00052328,120]
[354602516,1740595849290,-500.0,0.00052328,120]
[354602518,1740595849300,-500.0,0.00052328,120]
[354602520,1740595849310,-500.0,0.00052328,120]
[354602522,1740595849322,-500.0,0.00052328,120]
[354602524,1740595849332,-508.18512307,0.00052328,120]
[354602526,1740595849342,-500.0,0.00052328,120]
[354602527,1740595849352,-500.0,0.00052328,120]
[354602529,1740595849361,-500.0,0.00052328,120]
[354602531,1740595849371,-500.0,0.00052328,120]
[354602533,1740595849380,-500.0,0.00052328,120]
[354602535,1740595849390,-500.0,0.00052328,120]
[354602537,1740595849400,-500.0,0.00052328,120]
[354602539,1740595849410,-500.0,0.00052328,120]
[354602541,1740595849422,-500.0,0.00052328,120]
[354602543,1740595849431,-506.04088682,0.00052328,120]
[354602545,1740595849440,-1372.49,0.00052328,120]
[354602547,1740595849450,-500.0,0.00052328,120]
[354602549,1740595849460,-500.0,0.00052328,120]
[354602551,1740595849470,-500.0,0.00052328,120]
[354602553,1740595849480,-500.0,0.00052328,120]
[354602555,1740595849490,-500.0,0.00052328,120]
[354602557,1740595849499,-500.0,0.00052328,120]
[354602558,1740595849508,-500.0,0.00052328,120]
[354602560,1740595849517,-500.0,0.00052328,120]
[354602562,1740595849526,-500.0,0.00052328,120]
[354602564,1740595849535,-2314.27,0.00052328,120]
[354602566,1740595849545,-901.59,0.00052328,120]
[354602568,1740595849554,-822.39,0.00052328,120]
[354602570,1740595849566,-1486.63,0.00052328,120]
[354602572,1740595849575,-500.64019631,0.00052328,120]
[354602574,1740595849584,-500.0,0.00052328,120]
[354602576,1740595849593,-500.0,0.00052328,120]
[354602578,1740595849602,-500.0,0.00052328,120]
[354602580,1740595849612,-500.0,0.00052328,120]
[354602582,1740595849621,-1677.06,0.00052328,120]
[354602584,1740595849631,-500.0,0.00052328,120]
[354602586,1740595849640,-1205.34,0.00052328,120]
[354602588,1740595849649,-500.0,0.00052328,120]
[354602590,1740595849659,-500.0,0.00052328,120]
[354602591,1740595849668,-2294.05,0.00052328,120]
[354602593,1740595849678,-500.0,0.00052328,120]
[354602595,1740595849688,-500.0,0.00052328,120]
[354602597,1740595849698,-500.0,0.00052328,120]
[354602599,1740595849707,-500.0,0.00052328,120]
[354602601,1740595849716,-1120.61,0.00052328,120]
[354602603,1740595849726,-500.0,0.00052328,120]
[354602605,1740595849735,-604.64,0.00052328,120]
[354602607,1740595849744,-500.0,0.00052328,120]
[354602609,1740595849754,-335.03568069,0.00052328,120]
[354602611,1740595849764,-500.0,0.00052328,120]
[354602613,1740595849774,-500.0,0.00052328,120]
[354602615,1740595849783,-1074.36,0.00052328,120]
[354602617,1740595849792,-500.0,0.00052328,120]
[354602619,1740595849802,-223.35307809,0.00052328,120]
[354602621,1740595849813,-527.7,0.00052328,120]
[354602623,1740595849822,-500.0,0.00052328,120]
[354602625,1740595849832,-500.0,0.00052328,120]
[354602627,1740595849841,-500.0,0.00052328,120]
[354602629,1740595849851,-806.28,0.00052328,120]
[354602631,1740595849860,-500.0,0.00052328,120]
[354602633,1740595849870,-500.0,0.00052328,120]
[354602635,1740595849880,-504.7372326,0.00052328,120]
[354602637,1740595849890,-1834.97,0.00052328,120]
[354602639,1740595849899,-500.0,0.00052328,120]
[354602641,1740595849909,-500.0,0.00052328,120]
[354602642,1740595849919,-500.0,0.00052328,120]
[354602644,1740595849931,-500.0,0.00052328,120]
[354602646,1740595849945,-500.0,0.00052328,120]
[354602648,1740595849956,-841.31,0.00052328,120]
[354602650,1740595849967,-500.0,0.00052328,120]
[354602652,1740595849978,-500.0,0.00052328,120]
[354602654,1740595849990,-1149.59,0.00052328,120]
[354602656,1740595850000,-529.07807315,0.00052328,120]
[354602658,1740595850010,-500.0,0.00052328,120]
[354602660,1740595850020,-500.0,0.00052328,120]
[354602661,1740595850030,-294.81283306,0.00052328,120]
[354602662,1740595850041,-500.0,0.00052328,120]
[354602663,1740595850052,-500.0,0.00052328,120]
[354602664,1740595850065,-504.48,0.00052328,120]
[354602665,1740595850076,-500.0,0.00052328,120]
[354602666,1740595850088,-515.03801973,0.00052328,120]
[354602667,1740595850099,-500.0,0.00052328,120]
[354602668,1740595850109,-500.0,0.00052328,120]
[354602669,1740595850119,-610.98,0.00052328,120]
[354602670,1740595850130,-500.0,0.00052328,120]
[354602671,1740595850140,-17012.28,0.00052328,3]
[354602672,1740595850150,-500.0,0.00052328,120]
[354602673,1740595850161,-919.11,0.00052328,120]
[354602674,1740595850171,-500.0,0.00052328,120]
[354602675,1740595850181,-500.0,0.00052328,120]
[354602676,1740595850193,-500.0,0.00052328,120]
[354602677,1740595850203,-1139.22,0.00052328,120]
[354602678,1740595850213,-1427.81,0.00052328,120]
[354602679,1740595850223,-3966.28,0.00052328,120]
[354602680,1740595850233,-500.4299381,0.00052328,120]
[354602681,1740595850243,-500.0,0.00052328,120]
[354602682,1740595850253,-500.0,0.00052328,21]
[354602683,1740595850263,-1179.25,0.00052328,120]
[354602684,1740595850273,-501.4210357,0.00052328,120]
[354602685,1740595850282,-500.0,0.00052328,120]
[354602686,1740595850293,-500.0,0.00052328,120]
[354602687,1740595850303,-643.49,0.00052328,120]
[354602688,1740595850316,-500.0,0.00052328,30]
[354602689,1740595850325,-9738.58,0.00052328,120]
[354602690,1740595850335,-500.0,0.00052328,120]
[354602691,1740595850344,-500.0,0.00052328,120]
[354602693,1740595850354,-801.82,0.00052328,120]
[354602694,1740595850363,-500.0,0.00052328,120]
[354602696,1740595850373,-911.86,0.00052328,120]
[354602698,1740595850383,-500.0,0.00052328,120]
[354602700,1740595850392,-552.77,0.00052328,120]
[354602702,1740595850402,-500.0,0.00052328,120]
[354602704,1740595850412,-11052.45,0.00052328,120]
[354602706,1740595850421,-500.0,0.00052328,120]
[354602708,1740595850431,-500.05,0.00052328,120]
[354602710,1740595850440,-500.0,0.00052328,120]
[354602712,1740595850450,-587.37,0.00052328,120]
[354602714,1740595850460,-1570.34,0.00052328,120]
[354602716,1740595850469,-517.75,0.00052328,120]
[354602718,1740595850478,-3684.76,0.00052328,120]
[354602720,1740595850488,-500.0,0.00052328,120]
[354602722,1740595850499,-3499.84,0.00052328,120]
[354602724,1740595850509,-1015.05,0.00052328,120]
[354602726,1740595850519,-500.0,0.00052328,120]
[354602728,1740595850529,-13581.8,0.00052328,120]
[354602730,1740595850539,-500.0,0.00052328,120]
[354602732,1740595850550,-15292.47,0.00052328,120]
[354602734,1740595850560,-500.0,0.00052328,120]
[354602736,1740595850573,-500.0,0.00052328,120]
[354602738,1740595850583,-500.0,0.00052328,120]
[354602740,1740595850594,-500.0,0.00052328,120]
[354602742,1740595850604,-500.0,0.00052328,120]
[354602744,1740595850614,-528.11587061,0.00052328,120]
[354602746,1740595850625,-500.0,0.00052328,120]
[354602748,1740595850635,-500.0,0.00052328,120]
[354602750,1740595850644,-1020.31,0.00052328,120]
[354602752,1740595850654,-690.39,0.00052328,120]
[354602754,1740595850664,-3105.4,0.00052328,120]
[354602756,1740595850673,-834.44,0.00052328,30]
[354602758,1740595850684,-2309.16,0.00052328,120]
[354602760,1740595850693,-10799.99,0.00052328,120]
[354602762,1740595850703,-159.39285376,0.00052328,120]
[354602764,1740595850712,-500.0,0.00052328,120]
[354602766,1740595850721,-850.01,0.00052328,120]
[354602768,1740595850730,-500.0,0.00052328,120]
[354602769,1740595850740,-500.0,0.00052328,120]
[354602771,1740595850749,-4233.08,0.00052328,120]
[354602773,1740595850758,-151.0,0.00052328,3]
[354602775,1740595850767,-151.0,0.00052328,3]
[354602777,1740595850776,-4180.32,0.00052328,120]
[354602779,1740595850786,-500.0,0.00052328,120]
[354602781,1740595850795,-500.0,0.00052328,120]
[354602783,1740595850805,-500.0,0.00052328,120]
[354602785,1740595850815,-500.0,0.00052328,120]
[354602787,1740595850825,-2800.4,0.00052328,120]
[354602789,1740595850834,-2084.49,0.00052328,120]
[354602791,1740595850843,-583.3,0.00052328,120]
[354602793,1740595850852,-2951.73,0.00052328,120]
[354602795,1740595850861,-2431.59,0.00052328,120]
[354602797,1740595850870,-1000.0,0.00052328,120]
[354602799,1740595850880,-1918.79,0.00052328,120]
[354602801,1740595850890,-500.0,0.00052328,120]
[354602803,1740595850899,-1679.17,0.00052328,120]
[354602805,1740595850909,-500.0,0.00052328,120]
[354602807,1740595850918,-500.0,0.00052328,120]
[354602809,1740595850928,-500.0,0.00052328,120]
[354602811,1740595850938,-514.65,0.00052328,120]
[354602813,1740595850949,-2627.04,0.00052328,120]
[354602815,1740595850963,-500.0,0.00052328,120]
[354602817,1740595850973,-1409.36,0.00052328,120]
[354602819,1740595850982,-500.0,0.00052328,120]
[354602821,1740595850991,-785.21,0.00052328,120]
[354602823,1740595851001,-500.0,0.00052328,120]
[354602825,1740595851010,-834.81,0.00052328,120]
[354602827,1740595851020,-500.0,0.00052328,120]
[354602829,1740595851029,-505.6646325,0.00052328,120]
[354602831,1740595851040,-3016.52,0.00052328,120]
[354602833,1740595851050,-336.44272036,0.00052328,120]
[354602835,1740595851059,-684.79,0.00052328,120]
[354602837,1740595851072,-2867.38,0.00052328,120]
[354602839,1740595851082,-500.0,0.00052328,120]
[354602841,1740595851091,-500.0,0.00052328,120]
[354602843,1740595851101,-928.1,0.00052328,120]
[354602845,1740595851111,-511.43,0.00052328,120]
[354602847,1740595851121,-500.0,0.00052328,120]
[354602849,1740595851131,-500.0,0.00052328,120]
[354602851,1740595851140,-173.30739,0.00052328,120]
[354602853,1740595851150,-163172.77,0.00052328,7]
[354602855,1740595851160,-567.25,0.00052328,120]
[354602857,1740595851171,-4605.54,0.00052328,120]
[354602859,1740595851182,-884.36,0.00052328,120]
[354602861,1740595851192,-173.30739,0.00052328,120]
[354602863,1740595851203,-1000.0,0.00052328,120]
[354602865,1740595851214,-500.0,0.00052328,120]
[354602883,1740595851385,-573.56,0.00052328,120]
[354602886,1740595851395,-500.0,0.00052328,120]
[354602888,1740595851405,-500.0,0.00052328,120]
[354602890,1740595851415,-500.0,0.00052328,120]
[354602892,1740595851425,-1964.79,0.00052328,120]
[354602893,1740595851435,-29115.5,0.00052328,120]
[354602896,1740595851444,-500.0,0.00052328,30]
[354602898,1740595851454,-644.01,0.00052328,120]
[354602900,1740595851464,-1853.52,0.00052328,120]
[354602902,1740595851474,-500.0,0.00052328,120]
[354602904,1740595851483,-627.73,0.00052328,120]
[354602906,1740595851493,-1150.38,0.00052328,120]
[354602908,1740595851502,-8691.74,0.00052328,120]
[354602910,1740595851512,-820.33,0.00052328,120]
[354602912,1740595851521,-304.33131916,0.00052328,120]
[354602914,1740595851531,-1232.27,0.00052328,120]
[354602916,1740595851540,-8198.21,0.00052328,120]
[354602918,1740595851549,-500.0,0.00052328,120]
[354602920,1740595851559,-1218.92,0.00052328,120]
[354602922,1740595851571,-1991.01,0.00052328,120]
[354602924,1740595851580,-200.0,0.00052328,7]
[354602926,1740595851589,-500.0,0.00052328,120]
[354602928,1740595851599,-820.98,0.00052328,120]
[354602930,1740595851608,-555.9,0.00052328,120]
[354602932,1740595851617,-35881.26,0.00052328,120]
[354602934,1740595851627,-500.0,0.00052328,120]
[354602935,1740595851636,-500.0,0.00052328,120]
[354602938,1740595851646,-500.0,0.00052328,120]
[354602939,1740595851655,-949.77,0.00052328,120]
[354602941,1740595851665,-1000.0,0.00052328,2]
[354602943,1740595851675,-2923.8,0.00052328,120]
[354602946,1740595851685,-500.0,0.00052328,120]
[354602947,1740595851695,-500.0,0.00052328,120]
[354602950,1740595851705,-14356.2,0.00052328,120]
[354602952,1740595851715,-689.35,0.00052328,120]
[354602953,1740595851724,-853.36,0.00052328,120]
[354602956,1740595851734,-4865.11,0.00052328,120]
[354602957,1740595851744,-2475.11,0.00052328,120]
[354602959,1740595851755,-398.83787246,0.00052328,120]
[354602961,1740595851764,-500.0,0.00052328,120]
[354602963,1740595851774,-2671.56,0.00052328,120]
[354602965,1740595851784,-5089.13,0.00052328,120]
[354602967,1740595851794,-514.99,0.00052328,120]
[354602969,1740595851804,-44424.48,0.00052328,6]
[354602971,1740595851818,-500.0,0.00052328,120]
[354602974,1740595851830,-520.61,0.00052328,120]
[354602975,1740595851840,-1173.4,0.00052328,120]
[354602977,1740595851850,-500.0,0.00052328,120]
[354602979,1740595851861,-500.0,0.00052328,120]
[354602981,1740595851871,-1066.43,0.00052328,120]
[354602983,1740595851882,-3489.83,0.00052328,120]
[354602985,1740595851892,-1957.38,0.00052328,120]
[354602987,1740595851902,-500.0,0.00052328,120]
[354602989,1740595851912,-2424.79,0.00052328,120]
[354602991,1740595851922,-21424.0,0.00052328,120]
[354602993,1740595851935,-519.69,0.00052328,120]
[354602995,1740595851945,-526.05,0.00052328,120]
[354602997,1740595851955,-1666.71,0.00052328,120]
[354602999,1740595851964,-3965.85,0.00052328,120]
[354603001,1740595851976,-500.0,0.00052328,120]
[354603003,1740595851986,-788.51,0.00052328,120]
[354603004,1740595851997,-1619.69,0.00052328,120]
[354603006,1740595852007,-1722.02,0.00052328,120]
[354603008,1740595852020,-500.0,0.00052328,120]
[354603010,1740595852031,-500.0,0.00052328,120]
[354603012,1740595852042,-4778.1,0.00052328,120]
[354603014,1740595852053,-500.0,0.00052328,120]
[354603016,1740595852068,-2593.09,0.00052328,120]
[354603018,1740595852080,-1690.26,0.00052328,120]
[354603020,1740595852092,-500.0,0.00052328,120]
[354603022,1740595852104,-151.619424,0.00052328,120]
[354603024,1740595852115,-812.11,0.00052328,120]
[354603026,1740595852125,-503.38610217,0.00052328,120]
[354603028,1740595852137,-710.16,0.00052328,120]
[354603030,1740595852148,-1536.25,0.00052328,120]
[354603032,1740595852159,-626.19,0.00052328,120]
[354603034,1740595852170,-541.13,0.00052328,120]
[354603036,1740595852182,-512.95,0.00052328,120]
[354603038,1740595852193,-1851.36,0.00052328,120]
[354603040,1740595852205,-500.0,0.00052328,120]
[354603042,1740595852216,-662.82,0.00052328,120]
[354603044,1740595852228,-810.19,0.00052328,120]
[354603046,1740595852240,-10264.39,0.00052328,120]
[354603048,1740595852251,-500.0,0.00052328,120]
[354603051,1740595852261,-991.77,0.00052328,120]
[354603052,1740595852272,-3331.35,0.00052328,120]
[354603055,1740595852283,-500.0,0.00052328,120]
[354603057,1740595852294,-500.0,0.00052328,120]
[354603059,1740595852304,-500.0,0.00052328,120]
[354603061,1740595852317,-500.0,0.00052328,120]
[354603063,1740595852327,-500.0,0.00052328,120]
[354603065,1740595852336,-500.0,0.00052328,120]
[354603067,1740595852346,-500.0,0.00052328,120]
[354603069,1740595852355,-500.0,0.00052328,120]
[354603071,1740595852365,-5881.5,0.00052328,120]
[354603073,1740595852375,-500.0,0.00052328,120]
[354603075,1740595852384,-1213.93,0.00052328,120]
[354603077,1740595852394,-163.82168418,0.00052328,120]
[354603079,1740595852404,-500.0,0.00052328,120]
[354603081,1740595852414,-500.0,0.00052328,120]
[354603083,1740595852423,-500.0,0.00052328,120]
[354603085,1740595852434,-2374.13,0.00052328,120]
[354603087,1740595852444,-2465.59,0.00052328,120]
[354603088,1740595852454,-500.0,0.00052328,120]
[354603091,1740595852464,-500.0,0.00052328,120]